[Event "NJSK 2024 AmBm"]
[Site "Groningen, Netherlands"]
[Date "2024.04.29"]
[Round "3.4"]
[White "Basa, Manasvita"]
[Black "Knobbe, Elise"]
[Result "0-1"]
[TimeControl "90min/40moves + 30min + 30sec/move"]
[WhiteElo "1829"]
[BlackElo "1785"]

1. e4 {[%clk 01:30:57]} {[%emt 00:00:03]} e6 {[%clk 01:30:56]} {[%emt
00:00:04]} 2. d4 {[%clk 01:31:15]} {[%emt 00:00:13]} d5 {[%clk 01:31:20]}
{[%emt 00:00:06]} 3. e5 {[%clk 01:31:12]} {[%emt 00:00:33]} c5 {[%clk
01:31:43]} {[%emt 00:00:06]} 4. c3 {[%clk 01:31:38]} {[%emt 00:00:05]} Qb6
{[%clk 01:32:07]} {[%emt 00:00:05]} 5. Nf3 {[%clk 01:31:32]} {[%emt 00:00:36]}
Bd7 {[%clk 01:32:27]} {[%emt 00:00:09]} 6. Bd3 {[%clk 01:31:05]} {[%emt
00:00:57]} Bb5 {[%clk 01:32:32]} {[%emt 00:00:25]} 7. O-O {[%clk 01:25:26]}
{[%emt 00:06:10]} Bxd3 {[%clk 01:32:36]} {[%emt 00:00:27]} 8. Qxd3 {[%clk
01:25:50]} {[%emt 00:00:05]} Nd7 {[%clk 01:28:52]} {[%emt 00:04:14]} 9. a4
{[%clk 01:05:39]} {[%emt 00:20:42]} Ne7 {[%clk 01:23:37]} {[%emt 00:05:43]} 10.
Na3 {[%clk 00:57:25]} {[%emt 00:08:45]} a6 {[%clk 01:16:29]} {[%emt 00:07:38]}
11. a5 {[%clk 00:42:19]} {[%emt 00:15:36]} Qc7 {[%clk 01:11:16]} {[%emt
00:05:43]} 12. b4 {[%clk 00:39:59]} {[%emt 00:02:50]} cxb4 {[%clk 01:08:25]}
{[%emt 00:03:20]} 13. cxb4 {[%clk 00:40:18]} {[%emt 00:00:12]} Nc6 {[%clk
01:06:00]} {[%emt 00:02:54]} 14. b5 {[%clk 00:33:56]} {[%emt 00:06:52]} Nxa5
{[%clk 00:52:43]} {[%emt 00:13:47]} 15. Bd2 {[%clk 00:33:55]} {[%emt 00:00:31]}
Bxa3 {[%clk 00:41:58]} {[%emt 00:11:15]} 16. Qxa3 {[%clk 00:29:17]} {[%emt
00:05:08]} Nc4 {[%clk 00:41:57]} {[%emt 00:00:31]} 17. Rfc1 {[%clk 00:19:42]}
{[%emt 00:10:05]} Qd8 {[%clk 00:38:10]} {[%emt 00:04:16]} 18. Qd3 {[%clk
00:12:48]} {[%emt 00:07:25]} O-O {[%clk 00:35:04]} {[%emt 00:03:35]} 19. Ng5
{[%clk 00:08:15]} {[%emt 00:05:04]} g6 {[%clk 00:33:42]} {[%emt 00:01:52]} 20.
Bf4 {[%clk 00:02:12]} {[%emt 00:06:33]} Qe7 {[%clk 00:25:05]} {[%emt 00:09:07]}
21. bxa6 {[%clk 00:02:34]} {[%emt 00:00:08]} Rxa6 {[%clk 00:23:11]} {[%emt
00:02:24]} 22. Rxa6 {[%clk 00:02:54]} {[%emt 00:00:11]} bxa6 {[%clk 00:23:27]}
{[%emt 00:00:13]} 23. Rc3 {[%clk 00:03:23]} f6 {[%clk 00:12:35]} {[%emt
00:11:22]} 24. exf6 {[%clk 00:03:09]} {[%emt 00:00:44]} Nxf6 {[%clk 00:09:20]}
{[%emt 00:03:45]} 25. Qh3 {[%clk 00:00:55]} {[%emt 00:02:44]} Ne4 {[%clk
00:09:15]} {[%emt 00:00:35]} 26. Nxe4 {[%clk 00:00:50]} {[%emt 00:00:35]} Rxf4
{[%clk 00:09:14]} {[%emt 00:00:31]} 27. Ng3 {[%clk 00:00:34]} {[%emt 00:00:46]}
Rh4 {[%clk 00:09:20]} {[%emt 00:00:22]} 0-1

[Event "NJSK 2024 AmBm"]
[Site "Groningen, Netherlands"]
[Date "2024.04.29"]
[Round "3.5"]
[White "Luijkx, Dagmar"]
[Black "Feng, Elysia"]
[Result "0-1"]
[TimeControl "90min/40moves + 30min + 30sec/move"]
[WhiteElo "1701"]
[BlackElo "1862"]

1. e4 {[%clk 01:30:58]} {[%emt 00:00:02]} e5 {[%clk 01:30:56]} {[%emt
00:00:04]} 2. Nf3 {[%clk 01:31:25]} {[%emt 00:00:03]} Nc6 {[%clk 01:31:21]}
{[%emt 00:00:06]} 3. d4 {[%clk 01:31:48]} {[%emt 00:00:07]} exd4 {[%clk
01:31:43]} {[%emt 00:00:08]} 4. Nxd4 {[%clk 01:32:12]} {[%emt 00:00:05]} Bc5
{[%clk 01:32:06]} {[%emt 00:00:07]} 5. Be3 {[%clk 01:32:33]} {[%emt 00:00:09]}
Qf6 {[%clk 01:32:32]} {[%emt 00:00:04]} 6. c3 {[%clk 01:32:52]} {[%emt
00:00:12]} Nge7 {[%clk 01:32:55]} {[%emt 00:00:07]} 7. Bc4 {[%clk 01:33:14]}
{[%emt 00:00:08]} O-O {[%clk 01:33:18]} {[%emt 00:00:06]} 8. O-O {[%clk
01:33:40]} {[%emt 00:00:04]} b6 {[%clk 01:33:30]} {[%emt 00:00:19]} 9. f4
{[%clk 01:33:56]} {[%emt 00:00:14]} d5 {[%clk 01:28:10]} {[%emt 00:05:50]} 10.
exd5 {[%clk 01:24:11]} {[%emt 00:10:14]} Nxd4 {[%clk 01:26:41]} {[%emt
00:01:59]} 11. cxd4 {[%clk 01:13:10]} {[%emt 00:11:31]} Nf5 {[%clk 01:24:26]}
{[%emt 00:02:45]} 12. Bf2 {[%clk 01:04:32]} {[%emt 00:09:07]} Bxd4 {[%clk
01:20:42]} {[%emt 00:04:14]} 13. Bxd4 {[%clk 01:03:34]} {[%emt 00:01:29]} Nxd4
{[%clk 01:20:35]} {[%emt 00:00:38]} 14. Nc3 {[%clk 01:01:31]} {[%emt 00:02:32]}
Nf5 {[%clk 01:13:46]} {[%emt 00:07:18]} 15. Re1 {[%clk 00:55:12]} {[%emt
00:06:49]} Bb7 {[%clk 01:10:04]} {[%emt 00:04:12]} 16. Bd3 {[%clk 00:49:44]}
{[%emt 00:05:59]} Rad8 {[%clk 01:04:22]} {[%emt 00:06:12]} 17. Qc2 {[%clk
00:45:10]} {[%emt 00:05:04]} Nd4 {[%clk 01:00:48]} {[%emt 00:04:04]} 18. Qf2
{[%clk 00:41:38]} {[%emt 00:03:57]} Bxd5 {[%clk 00:54:26]} {[%emt 00:06:57]} 19.
Re5 {[%clk 00:39:55]} {[%emt 00:02:12]} Bb7 {[%clk 00:48:34]} {[%emt 00:06:20]}
20. Rae1 {[%clk 00:33:12]} {[%emt 00:07:15]} Ne6 {[%clk 00:43:27]} {[%emt
00:05:38]} 21. Bf5 {[%clk 00:27:57]} {[%emt 00:05:45]} Nc5 {[%clk 00:34:21]}
{[%emt 00:09:36]} 22. R1e3 {[%clk 00:24:34]} {[%emt 00:03:52]} g6 {[%clk
00:29:53]} {[%emt 00:04:59]} 23. Bc2 {[%clk 00:19:05]} {[%emt 00:05:59]} Ne6
{[%clk 00:20:32]} {[%emt 00:09:51]} 24. Ne2 {[%clk 00:15:43]} {[%emt 00:03:52]}
Rd2 {[%clk 00:19:16]} {[%emt 00:01:45]} 25. Bb3 {[%clk 00:12:44]} {[%emt
00:03:29]} Nd4 {[%clk 00:18:11]} {[%emt 00:01:35]} 26. h4 {[%clk 00:11:04]}
{[%emt 00:02:10]} Ba6 {[%clk 00:17:30]} {[%emt 00:01:12]} 27. g3 {[%clk
00:07:22]} {[%emt 00:04:11]} Nxe2+ {[%clk 00:15:29]} {[%emt 00:02:31]} 28. Rxe2
{[%clk 00:07:35]} {[%emt 00:00:17]} Rxe2 {[%clk 00:15:31]} {[%emt 00:00:29]} 29.
Rxe2 {[%clk 00:07:53]} {[%emt 00:00:12]} Bxe2 {[%clk 00:15:57]} {[%emt
00:00:04]} 30. Qxe2 {[%clk 00:08:16]} {[%emt 00:00:06]} Qd4+ {[%clk 00:16:09]}
{[%emt 00:00:18]} 31. Kg2 {[%clk 00:08:11]} {[%emt 00:00:35]} c5 {[%clk
00:15:23]} {[%emt 00:01:17]} 32. Kh3 {[%clk 00:07:17]} {[%emt 00:01:22]} Rd8
{[%clk 00:15:28]} {[%emt 00:00:25]} 33. Kg4 {[%clk 00:06:33]} {[%emt 00:01:14]}
h5+ {[%clk 00:14:56]} {[%emt 00:01:03]} 34. Kg5 {[%clk 00:06:28]} {[%emt
00:00:34]} Kg7 {[%clk 00:14:36]} {[%emt 00:00:50]} 35. Qe7 {[%clk 00:05:32]}
{[%emt 00:01:26]} Rd5+ {[%clk 00:14:04]} {[%emt 00:01:02]} 36. Bxd5 {[%clk
00:05:37]} {[%emt 00:00:25]} Qxd5+ {[%clk 00:14:31]} {[%emt 00:00:03]} 37. Qe5+
{[%clk 00:05:10]} {[%emt 00:00:57]} f6# {[%emt 00:00:02]} 0-1

[Event "NJSK 2024 AmBm"]
[Site "Groningen, Netherlands"]
[Date "2024.04.29"]
[Round "3.6"]
[White "Kulikova, Polina"]
[Black "Liu, Chia-Yun"]
[Result "1-0"]
[TimeControl "90min/40moves + 30min + 30sec/move"]
[WhiteElo "1690"]
[BlackElo "1704"]

1. d4 {[%clk 01:30:59]} d5 {[%clk 01:30:51]} {[%emt 00:00:10]} 2. c4 {[%clk
01:31:27]} {[%emt 00:00:02]} e6 {[%clk 01:31:03]} {[%emt 00:00:18]} 3. Nc3
{[%clk 01:31:54]} {[%emt 00:00:02]} Nf6 {[%clk 01:31:11]} {[%emt 00:00:22]} 4.
cxd5 {[%clk 01:32:20]} {[%emt 00:00:04]} exd5 {[%clk 01:31:20]} {[%emt
00:00:22]} 5. Bg5 {[%clk 01:32:42]} {[%emt 00:00:07]} Be7 {[%clk 01:31:08]}
{[%emt 00:00:42]} 6. e3 {[%clk 01:32:53]} {[%emt 00:00:20]} O-O {[%clk
01:30:28]} {[%emt 00:01:09]} 7. Bd3 {[%clk 01:33:04]} {[%emt 00:00:19]} h6
{[%clk 01:30:21]} {[%emt 00:00:37]} 8. Bh4 {[%clk 01:33:21]} {[%emt 00:00:14]}
c6 {[%clk 01:28:49]} {[%emt 00:02:02]} 9. Qc2 {[%clk 01:33:20]} {[%emt
00:00:30]} Nbd7 {[%clk 01:27:58]} {[%emt 00:01:21]} 10. Nge2 {[%clk 01:33:26]}
{[%emt 00:00:24]} b5 {[%clk 01:26:07]} {[%emt 00:02:22]} 11. O-O {[%clk
01:32:04]} {[%emt 00:01:53]} a5 {[%clk 01:24:43]} {[%emt 00:01:53]} 12. Rae1
{[%clk 01:23:39]} {[%emt 00:08:54]} Bb7 {[%clk 01:16:37]} {[%emt 00:08:37]} 13.
f3 {[%clk 01:19:59]} {[%emt 00:04:09]} Re8 {[%clk 01:05:42]} {[%emt 00:11:26]}
14. Kh1 {[%clk 01:08:11]} {[%emt 00:12:16]} Rc8 {[%clk 00:53:45]} {[%emt
00:12:29]} 15. Bf2 {[%clk 00:37:51]} {[%emt 00:30:50]} b4 {[%clk 00:48:29]}
{[%emt 00:05:47]} 16. Na4 {[%clk 00:36:14]} {[%emt 00:02:06]} c5 {[%clk
00:44:19]} {[%emt 00:04:40]} 17. Nxc5 {[%clk 00:34:06]} {[%emt 00:02:37]} Nxc5
{[%clk 00:43:08]} {[%emt 00:01:41]} 18. dxc5 {[%clk 00:34:25]} {[%emt
00:00:11]} Bxc5 {[%clk 00:43:13]} {[%emt 00:00:26]} 19. Qd2 {[%clk 00:29:08]}
{[%emt 00:05:47]} Qb6 {[%clk 00:35:18]} {[%emt 00:08:25]} 20. Nd4 {[%clk
00:27:06]} {[%emt 00:02:32]} a4 {[%clk 00:26:22]} {[%emt 00:09:25]} 21. Bb5
{[%clk 00:19:45]} {[%emt 00:07:52]} Red8 {[%clk 00:20:51]} {[%emt 00:06:01]} 22.
Bxa4 {[%clk 00:15:54]} {[%emt 00:04:21]} Ba6 {[%clk 00:19:43]} {[%emt
00:01:38]} 23. Rg1 {[%clk 00:15:19]} {[%emt 00:01:05]} Nd7 {[%clk 00:16:03]}
{[%emt 00:04:10]} 24. Bxd7 {[%clk 00:12:10]} {[%emt 00:03:38]} Rxd7 {[%clk
00:16:24]} {[%emt 00:00:10]} 25. Rc1 {[%clk 00:12:10]} {[%emt 00:00:30]} Bc4
{[%clk 00:14:39]} {[%emt 00:02:15]} 26. b3 {[%clk 00:12:00]} {[%emt 00:00:40]}
Ba6 {[%clk 00:14:38]} {[%emt 00:00:32]} 27. Rc2 {[%clk 00:11:50]} {[%emt
00:00:40]} Rdd8 {[%clk 00:13:39]} {[%emt 00:01:29]} 28. Rd1 {[%clk 00:10:07]}
{[%emt 00:02:13]} Bxd4 {[%clk 00:12:07]} {[%emt 00:02:02]} 29. Rxc8 {[%clk
00:07:05]} {[%emt 00:03:32]} Rxc8 {[%clk 00:12:14]} {[%emt 00:00:23]} 30. exd4
{[%clk 00:06:14]} {[%emt 00:01:20]} Rc3 {[%clk 00:12:03]} {[%emt 00:00:41]} 31.
Rc1 {[%clk 00:05:19]} {[%emt 00:01:25]} Qc6 {[%clk 00:10:02]} {[%emt 00:02:31]}
32. Rxc3 {[%clk 00:04:19]} {[%emt 00:01:29]} Qxc3 {[%clk 00:10:22]} {[%emt
00:00:10]} 33. Qxc3 {[%clk 00:04:47]} {[%emt 00:00:02]} bxc3 {[%clk 00:10:42]}
{[%emt 00:00:10]} 34. Kg1 {[%clk 00:04:56]} {[%emt 00:00:22]} Kf8 {[%clk
00:09:24]} {[%emt 00:01:49]} 35. Be3 {[%clk 00:04:03]} {[%emt 00:01:22]} Ke7
{[%clk 00:09:02]} {[%emt 00:00:52]} 36. Kf2 {[%clk 00:04:26]} {[%emt 00:00:07]}
Kd6 {[%clk 00:08:42]} {[%emt 00:00:50]} 37. Ke1 {[%clk 00:04:32]} {[%emt
00:00:25]} Kc6 {[%clk 00:07:56]} {[%emt 00:01:15]} 38. Kd1 {[%clk 00:03:59]}
{[%emt 00:01:03]} Bd3 {[%clk 00:08:01]} {[%emt 00:00:25]} 39. Kc1 {[%clk
00:04:02]} {[%emt 00:00:27]} Kb5 {[%clk 00:07:29]} {[%emt 00:01:02]} 40. a3
{[%clk 00:04:28]} {[%emt 00:00:04]} h5 {[%clk 00:06:44]} {[%emt 00:01:14]} 41.
Bf2 {[%clk 00:04:03]} {[%emt 00:00:55]} Bf1 {[%clk 00:05:57]} {[%emt 00:01:18]}
42. g3 {[%clk 00:04:05]} {[%emt 00:00:28]} Bg2 {[%clk 00:06:14]} {[%emt
00:00:13]} 43. f4 {[%clk 00:04:16]} {[%emt 00:00:19]} Be4 {[%clk 00:06:34]}
{[%emt 00:00:10]} 44. Be1 {[%clk 00:04:29]} {[%emt 00:00:16]} c2 {[%clk
00:06:50]} {[%emt 00:00:15]} 45. Kb2 {[%clk 00:03:56]} {[%emt 00:01:03]} Bd3
{[%clk 00:06:20]} {[%emt 00:01:00]} 46. Bd2 {[%clk 00:04:17]} {[%emt 00:00:08]}
g6 {[%clk 00:05:33]} {[%emt 00:01:18]} 47. a4+ {[%clk 00:03:47]} {[%emt
00:01:00]} Ka6 {[%clk 00:05:11]} {[%emt 00:00:52]} 48. b4 {[%clk 00:29:57]}
{[%emt 00:04:18]} Kb6 {[%clk 00:33:30]} {[%emt 00:02:13]} 49. Ka3 {[%clk
00:29:55]} {[%emt 00:00:32]} Ka6 {[%clk 00:33:14]} {[%emt 00:00:47]} 50. b5+
{[%clk 00:29:48]} {[%emt 00:00:36]} Kb6 {[%clk 00:32:03]} {[%emt 00:01:41]} 51.
Kb4 {[%clk 00:30:12]} {[%emt 00:00:06]} Kb7 {[%clk 00:30:42]} {[%emt 00:01:51]}
52. Kc5 {[%clk 00:28:06]} {[%emt 00:02:36]} Bc4 {[%clk 00:31:00]} {[%emt
00:00:12]} 53. a5 {[%clk 00:17:25]} {[%emt 00:11:12]} Ka7 {[%clk 00:30:07]}
{[%emt 00:01:22]} 54. Kc6 {[%clk 00:15:53]} {[%emt 00:02:02]} Kb8 {[%clk
00:29:05]} {[%emt 00:01:32]} 55. f5 {[%clk 00:12:38]} {[%emt 00:03:45]} gxf5
{[%clk 00:28:33]} {[%emt 00:01:02]} 56. b6 {[%clk 00:09:32]} {[%emt 00:03:36]}
Ka8 {[%clk 00:28:08]} {[%emt 00:00:54]} 57. b7+ {[%clk 00:09:34]} {[%emt
00:00:29]} Ka7 {[%clk 00:28:29]} {[%emt 00:00:09]} 58. Kc7 {[%clk 00:09:54]}
{[%emt 00:00:09]} Ka6 {[%clk 00:28:13]} {[%emt 00:00:46]} 59. b8=Q {[%clk
00:10:17]} {[%emt 00:00:08]} Bb5 {[%clk 00:28:26]} {[%emt 00:00:17]} 60. Qb6#
{[%clk 00:10:06]} {[%emt 00:00:08]} 1-0

[Event "NJSK 2024 AmBm"]
[Site "Groningen, Netherlands"]
[Date "2024.04.29"]
[Round "3.7"]
[White "Van Apeldoorn, Vera"]
[Black "Ganeshram, Nirupa"]
[Result "1-0"]
[TimeControl "90min/40moves + 30min + 30sec/move"]
[WhiteElo "1601"]
[BlackElo "1696"]

1. d4 {[%clk 01:30:58]} {[%emt 00:00:02]} Nf6 {[%clk 01:30:54]} {[%emt
00:00:06]} 2. c4 {[%clk 01:31:19]} {[%emt 00:00:09]} d6 {[%clk 01:31:14]}
{[%emt 00:00:10]} 3. Nf3 {[%clk 01:30:39]} {[%emt 00:01:09]} Nbd7 {[%clk
01:31:11]} {[%emt 00:00:33]} 4. Bf4 {[%clk 01:28:26]} {[%emt 00:02:43]} Nh5
{[%clk 01:29:22]} {[%emt 00:02:20]} 5. Bd2 {[%clk 01:26:50]} {[%emt 00:02:06]}
e5 {[%clk 01:27:06]} {[%emt 00:02:45]} 6. dxe5 {[%clk 01:25:22]} {[%emt
00:01:58]} dxe5 {[%clk 01:25:39]} {[%emt 00:01:58]} 7. Nc3 {[%clk 01:24:31]}
{[%emt 00:01:21]} c6 {[%clk 01:24:22]} {[%emt 00:01:46]} 8. e3 {[%clk
01:19:00]} {[%emt 00:06:01]} Nhf6 {[%clk 01:21:55]} {[%emt 00:02:57]} 9. Bd3
{[%clk 01:16:38]} {[%emt 00:02:52]} Be7 {[%clk 01:16:38]} {[%emt 00:05:47]} 10.
O-O {[%clk 01:16:08]} {[%emt 00:00:59]} O-O {[%clk 01:14:53]} {[%emt 00:02:15]}
11. Rc1 {[%clk 01:11:44]} {[%emt 00:04:54]} a6 {[%clk 01:11:52]} {[%emt
00:03:31]} 12. a3 {[%clk 01:07:00]} {[%emt 00:05:14]} Re8 {[%clk 01:07:03]}
{[%emt 00:05:19]} 13. Ne4 {[%clk 01:03:29]} {[%emt 00:04:01]} Bf8 {[%clk
00:59:06]} {[%emt 00:08:27]} 14. Bc3 {[%clk 00:59:07]} {[%emt 00:04:52]} g6
{[%clk 00:51:12]} {[%emt 00:08:24]} 15. Qe2 {[%clk 00:55:20]} {[%emt 00:04:18]}
Nh5 {[%clk 00:48:43]} {[%emt 00:02:59]} 16. Bb1 {[%clk 00:49:12]} {[%emt
00:06:38]} f5 {[%clk 00:33:23]} {[%emt 00:15:50]} 17. Ned2 {[%clk 00:44:16]}
{[%emt 00:05:26]} e4 {[%clk 00:27:00]} {[%emt 00:06:53]} 18. Nd4 {[%clk
00:42:07]} {[%emt 00:02:39]} c5 {[%clk 00:24:48]} {[%emt 00:02:42]} 19. Nxf5
{[%clk 00:37:43]} {[%emt 00:04:54]} Ndf6 {[%clk 00:13:34]} {[%emt 00:11:45]} 20.
Ng3 {[%clk 00:35:32]} {[%emt 00:02:40]} Bg4 {[%clk 00:12:48]} {[%emt 00:01:16]}
21. Qe1 {[%clk 00:33:09]} {[%emt 00:02:53]} Nxg3 {[%clk 00:11:48]} {[%emt
00:01:30]} 22. fxg3 {[%clk 00:33:09]} {[%emt 00:00:29]} Bf5 {[%clk 00:11:09]}
{[%emt 00:01:10]} 23. Bxf6 {[%clk 00:32:35]} {[%emt 00:01:04]} Qxf6 {[%clk
00:11:27]} {[%emt 00:00:12]} 24. g4 {[%clk 00:32:49]} {[%emt 00:00:16]} Qxb2
{[%clk 00:10:36]} {[%emt 00:01:21]} 25. gxf5 {[%clk 00:32:53]} {[%emt
00:00:26]} Rad8 {[%clk 00:09:55]} {[%emt 00:01:11]} 26. Nxe4 {[%clk 00:32:29]}
{[%emt 00:00:54]} Rxe4 {[%clk 00:07:56]} {[%emt 00:02:29]} 27. Bxe4 {[%clk
00:31:02]} {[%emt 00:01:57]} Bh6 {[%clk 00:07:13]} {[%emt 00:01:13]} 28. Bd5+
{[%clk 00:29:12]} {[%emt 00:02:20]} Kh8 {[%clk 00:06:47]} {[%emt 00:00:56]} 29.
Qc3+ {[%clk 00:29:26]} {[%emt 00:00:16]} Qxc3 {[%clk 00:06:54]} {[%emt
00:00:23]} 30. Rxc3 {[%clk 00:29:50]} {[%emt 00:00:06]} b5 {[%clk 00:07:07]}
{[%emt 00:00:17]} 31. f6 {[%clk 00:29:02]} {[%emt 00:01:18]} b4 {[%clk
00:07:07]} {[%emt 00:00:30]} 32. axb4 {[%clk 00:29:10]} {[%emt 00:00:22]} cxb4
{[%clk 00:07:33]} {[%emt 00:00:03]} 33. Rb3 {[%clk 00:29:24]} {[%emt 00:00:16]}
a5 {[%clk 00:07:44]} {[%emt 00:00:20]} 34. e4 {[%clk 00:28:19]} {[%emt
00:01:35]} Bf8 {[%clk 00:07:42]} {[%emt 00:00:31]} 35. Ra1 {[%clk 00:28:12]}
{[%emt 00:00:37]} Bc5+ {[%clk 00:07:41]} {[%emt 00:00:32]} 36. Kf1 {[%clk
00:28:13]} {[%emt 00:00:29]} Bd4 {[%clk 00:08:01]} {[%emt 00:00:10]} 37. Rxa5
{[%clk 00:28:14]} {[%emt 00:00:28]} Bxf6 {[%clk 00:08:12]} {[%emt 00:00:20]} 38.
Ra8 {[%clk 00:28:24]} {[%emt 00:00:20]} Rxa8 {[%clk 00:07:39]} {[%emt
00:01:03]} 39. Bxa8 {[%clk 00:28:49]} {[%emt 00:00:05]} Be7 {[%clk 00:07:42]}
{[%emt 00:00:27]} 40. Rf3 {[%clk 00:27:47]} {[%emt 00:01:32]} h6 {[%clk
00:07:00]} {[%emt 00:01:12]} 41. Ke2 {[%clk 00:27:03]} {[%emt 00:01:14]} g5
{[%clk 00:07:02]} {[%emt 00:00:28]} 42. h3 {[%clk 00:27:14]} {[%emt 00:00:19]}
Kg8 {[%clk 00:06:37]} {[%emt 00:00:55]} 43. Bd5+ {[%clk 00:27:27]} {[%emt
00:00:16]} Kh8 {[%clk 00:06:54]} {[%emt 00:00:13]} 44. Kd3 {[%clk 00:27:12]}
{[%emt 00:00:46]} Bc5 {[%clk 00:07:01]} {[%emt 00:00:23]} 45. Rf7 {[%clk
00:27:11]} {[%emt 00:00:28]} Bg1 {[%clk 00:06:41]} {[%emt 00:00:51]} 46. e5
{[%clk 00:27:18]} {[%emt 00:00:24]} b3 {[%clk 00:06:45]} {[%emt 00:00:26]} 47.
e6 {[%clk 00:26:39]} {[%emt 00:01:09]} b2 {[%clk 00:07:02]} {[%emt 00:00:13]}
48. Kc2 {[%clk 00:26:57]} {[%emt 00:00:11]} Bc5 {[%clk 00:06:17]} {[%emt
00:01:16]} 49. e7 {[%clk 00:27:20]} {[%emt 00:00:08]} 1-0

[Event "NJSK 2024 AmBm"]
[Site "Groningen, Netherlands"]
[Date "2024.04.29"]
[Round "3.8"]
[White "Hagen, Carlijn"]
[Black "Yildirim, Azra"]
[Result "1/2-1/2"]
[TimeControl "90min/40moves + 30min + 30sec/move"]
[WhiteElo "1705"]
[BlackElo "1597"]

1. d4 {[%clk 01:30:57]} {[%emt 00:00:02]} Nf6 {[%clk 01:30:53]} {[%emt
00:00:08]} 2. Nc3 {[%clk 01:30:54]} {[%emt 00:00:33]} e6 {[%clk 01:30:37]}
{[%emt 00:00:46]} 3. Bf4 {[%clk 01:31:06]} {[%emt 00:00:17]} Bb4 {[%clk
01:29:58]} {[%emt 00:01:10]} 4. Nf3 {[%clk 01:28:17]} {[%emt 00:03:18]} Nd5
{[%clk 01:19:39]} {[%emt 00:10:49]} 5. Qd2 {[%clk 01:23:15]} {[%emt 00:05:31]}
Nc6 {[%clk 01:12:54]} {[%emt 00:07:17]} 6. e4 {[%clk 01:17:53]} {[%emt
00:05:51]} Nf6 {[%clk 01:05:40]} {[%emt 00:07:44]} 7. Bd3 {[%clk 01:14:18]}
{[%emt 00:04:04]} d5 {[%clk 01:02:32]} {[%emt 00:03:39]} 8. exd5 {[%clk
01:10:39]} {[%emt 00:04:08]} Nxd5 {[%clk 00:58:54]} {[%emt 00:04:09]} 9. O-O
{[%clk 01:08:29]} {[%emt 00:02:40]} Nf6 {[%clk 00:55:14]} {[%emt 00:04:11]} 10.
a3 {[%clk 00:58:43]} {[%emt 00:10:15]} Ba5 {[%clk 00:51:21]} {[%emt 00:04:23]}
11. b4 {[%clk 00:57:32]} {[%emt 00:01:41]} Bb6 {[%clk 00:51:03]} {[%emt
00:00:48]} 12. Bb5 {[%clk 00:57:37]} {[%emt 00:00:25]} Bd7 {[%clk 00:46:36]}
{[%emt 00:04:57]} 13. d5 {[%clk 00:47:42]} {[%emt 00:10:25]} exd5 {[%clk
00:43:26]} {[%emt 00:03:41]} 14. Nxd5 {[%clk 00:47:50]} {[%emt 00:00:22]} Be6
{[%clk 00:31:16]} {[%emt 00:12:40]} 15. Nxb6 {[%clk 00:41:50]} {[%emt
00:06:30]} Qxd2 {[%clk 00:28:03]} {[%emt 00:03:43]} 16. Bxd2 {[%clk 00:41:59]}
{[%emt 00:00:21]} axb6 {[%clk 00:26:52]} {[%emt 00:01:41]} 17. Ne5 {[%clk
00:41:38]} {[%emt 00:00:50]} O-O-O {[%clk 00:24:50]} {[%emt 00:02:32]} 18. Bf4
{[%clk 00:37:37]} {[%emt 00:04:30]} Nd4 {[%clk 00:21:58]} {[%emt 00:03:23]} 19.
Bd3 {[%clk 00:37:01]} {[%emt 00:01:07]} Ne4 {[%clk 00:18:39]} {[%emt 00:03:50]}
20. Be3 {[%clk 00:23:55]} {[%emt 00:13:34]} Nc3 {[%clk 00:17:09]} {[%emt
00:02:00]} 21. Rfe1 {[%clk 00:19:58]} {[%emt 00:04:25]} Rd5 {[%clk 00:13:52]}
{[%emt 00:03:49]} 22. Bf4 {[%clk 00:14:46]} {[%emt 00:05:42]} Re8 {[%clk
00:10:07]} {[%emt 00:04:16]} 23. Nc4 {[%clk 00:10:09]} {[%emt 00:05:08]} Nxc2
{[%clk 00:08:04]} {[%emt 00:02:32]} 24. Bxc2 {[%clk 00:10:08]} {[%emt
00:00:31]} Rd4 {[%clk 00:08:29]} {[%emt 00:00:04]} 25. Bxc7 {[%clk 00:08:40]}
{[%emt 00:01:59]} Kxc7 {[%clk 00:08:01]} {[%emt 00:00:58]} 26. Ne3 {[%clk
00:08:54]} {[%emt 00:00:15]} h6 {[%clk 00:07:26]} {[%emt 00:01:06]} 27. Rac1
{[%clk 00:07:17]} {[%emt 00:02:07]} Na2 {[%clk 00:06:32]} {[%emt 00:01:25]} 28.
Rcd1 {[%clk 00:07:01]} {[%emt 00:00:44]} Red8 {[%clk 00:05:31]} {[%emt
00:01:31]} 29. Rxd4 {[%clk 00:05:53]} {[%emt 00:01:39]} Rxd4 {[%clk 00:05:54]}
{[%emt 00:00:06]} 30. h3 {[%clk 00:06:09]} {[%emt 00:00:14]} Nc3 {[%clk
00:05:07]} {[%emt 00:01:17]} 31. Bf5 {[%clk 00:05:47]} {[%emt 00:00:52]} Rd6
{[%clk 00:04:03]} {[%emt 00:01:35]} 32. Bxe6 {[%clk 00:05:32]} {[%emt
00:00:45]} fxe6 {[%clk 00:04:13]} {[%emt 00:00:19]} 33. Kf1 {[%clk 00:04:44]}
{[%emt 00:01:18]} b5 {[%clk 00:03:15]} {[%emt 00:01:29]} 34. g4 {[%clk
00:04:04]} {[%emt 00:01:10]} Kd7 {[%clk 00:03:17]} {[%emt 00:00:28]} 35. Rc1
{[%clk 00:03:55]} {[%emt 00:00:38]} Ne4 {[%clk 00:02:57]} {[%emt 00:00:52]} 36.
f4 {[%clk 00:02:47]} {[%emt 00:01:37]} Rd3 {[%clk 00:02:43]} {[%emt 00:00:44]}
37. Ke2 {[%clk 00:02:36]} {[%emt 00:00:41]} Rxa3 {[%clk 00:02:52]} {[%emt
00:00:21]} 38. Rd1+ {[%clk 00:02:37]} {[%emt 00:00:29]} Ke7 {[%clk 00:02:19]}
{[%emt 00:01:03]} 39. Rd4 {[%clk 00:02:47]} {[%emt 00:00:20]} Nd6 {[%clk
00:01:48]} {[%emt 00:01:02]} 40. h4 {[%clk 00:01:15]} {[%emt 00:02:01]} Rc3
{[%clk 00:01:12]} {[%emt 00:01:06]} 41. f5 {[%clk 00:29:48]} {[%emt 00:01:57]}
Nc4 {[%clk 00:24:29]} {[%emt 00:07:12]} 42. Rd3 {[%clk 00:19:19]} {[%emt
00:10:59]} Rxd3 {[%clk 00:24:25]} {[%emt 00:00:34]} 43. Kxd3 {[%clk 00:19:43]}
{[%emt 00:00:06]} Nxe3 {[%clk 00:24:52]} {[%emt 00:00:04]} 44. Kxe3 {[%clk
00:20:06]} {[%emt 00:00:07]} exf5 {[%clk 00:25:16]} {[%emt 00:00:06]} 45. gxf5
{[%clk 00:20:31]} {[%emt 00:00:05]} Kf6 {[%clk 00:25:00]} {[%emt 00:00:45]} 46.
Kf4 {[%clk 00:17:02]} {[%emt 00:03:59]} g5+ {[%clk 00:18:55]} {[%emt 00:06:35]}
47. fxg6 {[%clk 00:16:53]} {[%emt 00:00:40]} Kxg6 {[%clk 00:19:04]} {[%emt
00:00:21]} 48. Kg4 {[%clk 00:13:32]} {[%emt 00:03:51]} h5+ {[%clk 00:14:27]}
{[%emt 00:05:05]} 1/2-1/2